Cogmind - Beta 11 @@@ ROGUE MODE // 2022.04.01 @ 21:37:39 Player: Awoo-Bot Result: Destroyed by G-34 Mercenary with Small Laser Performance ------------- Evolutions (0) 0 Regions Visited (2) 400 Robots Destroyed (22) 110 Value Destroyed (420) 420 Prototype IDs (2) 40 Alien Tech Used (0) 0 Bonus (0) 0 TOTAL SCORE: 970 Bonus ------- None Cogmind --------- Core Integrity 0/250 Matter 231/300 Energy 250/250 System Corruption 2% Temperature Warm (136) Movement Core (500) Ox9 Location -10/Mines Parts ------- > --- POWER (1) -------- Ion Engine > --- PROPULSION (2) --- Light Treads Light Treads > --- UTILITY (2) ------ Large Storage Unit > --- WEAPON (2) ------- Medium Laser Assault Rifle > --- INVENTORY (15) --- Light Ion Engine Wheel Large Storage Unit Experimental Sensor Array Hardened Light Armor Plating Hacking Suite Assault Rifle Assault Rifle Assault Rifle Shotgun Shotgun Mini Grenade Launcher Mini Grenade Launcher Datajack Peak State ------------ > --- POWER ------------ Light Ion Engine > --- PROPULSION ------- Light Treads Light Treads > --- UTILITY ---------- Large Storage Unit Hardened Light Armor Plating > --- WEAPON ----------- Shotgun Shotgun > --- INVENTORY -------- Light Ion Engine Wheel Compact Wheel Hardened Light Armor Plating Hardened Light Armor Plating Medium Laser Medium Laser Light Assault Rifle Shotgun Shotgun [Rating: 11] Favorites ----------- Power Ion Engine Engine Ion Engine Propulsion Light Treads Treads Light Treads Utility Hardened Light Armor Plating Storage Large Storage Unit Protection Hardened Light Armor Plating Weapon Medium Laser Energy Gun Medium Laser Ballistic Gun Assault Rifle Launcher Mini Grenade Launcher Build | -11 -10 -10 ------- Run | Scr Mat Min Slots Evolved . | . . . Power . | . . . Propulsion . | . . . Utility . | . . . Weapon . | . . . Parts Attached 28 | 7 17 4 Power 4 | 1 3 . Engine 4 | 1 3 . Core . | . . . Reactor . | . . . Propulsion 4 | 2 2 . Treads 4 | 2 2 . Leg . | . . . Wheel . | . . . Hover . | . . . Flight . | . . . Utility 7 | 2 5 . Device . | . . . Storage 5 | 2 3 . Processor . | . . . Hackware . | . . . Protection 2 | . 2 . Artifact . | . . . Weapon 13 | 2 7 4 Energy Gun 4 | 1 1 2 Energy Cannon . | . . . Ballistic Gun 8 | 1 6 1 Ballistic Cannon . | . . . Launcher 1 | . . 1 Special Weapon . | . . . Impact Weapon . | . . . Slashing Weapon . | . . . Piercing Weapon . | . . . Special Melee Weapon . | . . . Unidentified Prototypes . | . . . Parts Lost 2 | . . 2 Power . | . . . Propulsion . | . . . Utility 1 | . . 1 Weapon 1 | . . 1 Highest Loss Streak 1 | . . 1 To Critical Strikes . | . . . Average Slot Usage (%) 99 | . 99 99 Engine 14 | . 14 14 Treads 27 | . 27 28 Storage 14 | . 14 14 Protection 13 | . 13 13 Energy Gun 13 | . 13 13 Ballistic Gun 14 | . 14 13 Naked Turns . | . . . Heaviest Build 36 | 16 36 34 Greatest Support 40 | 40 40 40 Greatest Overweight (x) 1 | 1 . . Average Overweight (x) . | . . . Largest Inventory Capacity 15 | 8 15 15 Average Capacity 14 | 7 14 15 Most Carried 15 | 4 15 15 Average Carried 12 | 2 11 14 Final Capacity 15 | 8 15 15 Final Carried 14 | 4 14 14 Class Distribution -------------------- 100% | Mutant Dominant Class ---------------- Mutant | -10/Materials Mutant | -10/Mines Resources | -11 -10 -10 ----------- Run | Scr Mat Min Matter Collected 701 | 274 280 147 Remotely . | . . . Salvage Created 859 | 72 476 311 Parts 45 | 3 23 19 Haulers Intercepted 1 | . 1 . Recyclers Shooed 1 | . 1 . Parts Field Recycled . | . . . Retrieved Matter . | . . . Parts Self-Destructed . | . . . Prevented . | . . . Kills | -11 -10 -10 ------- Run | Scr Mat Min Combat Hostiles Destroyed 17 | . 10 7 Guns 17 | . 10 7 Classes Destroyed 6 | 1 3 2 Tunneler 3 | . . 3 Hauler 1 | . 1 . Recycler 3 | 1 2 . Swarmer 6 | . 6 . Grunt 9 | . 4 5 Assembled 2 | . . 2 Best Kill Streak 4 | 1 4 4 Combat Bots Only 3 | . 3 3 Max Kills in Single Turn 1 | 1 1 1 Gunslinging . | . . . Exploded . | . . . Melee . | . . . Uniques/NPCs Destroyed . | . . . Combat | -11 -10 -10 -------- Run | Scr Mat Min Damage Taken 1198 | . 447 751 Core 253 | . 73 180 Absorbed by Shields . | . . . Regen/Repaired (Parts) 117 | . 117 . Core Remaining (%) 100 | 100 . . Volleys Fired 86 | 4 45 37 Largest 2 | 2 2 2 Hottest 70 | 70 70 70 Shots Fired 153 | 8 78 67 Gun 147 | 8 78 61 Cannon . | . . . Launcher 6 | . . 6 Special . | . . . Kinetic 86 | 4 52 30 Thermal 61 | 4 26 31 Explosive 6 | . . 6 Electromagnetic . | . . . Robot Hit Streak 11 | 2 11 10 Robot Miss Streak 6 | 2 6 2 Penetration Max . | . . . Secondary Targets 5 | . 2 3 Max Gunslinging Chain 1 | . 1 1 Shots Hit Robots 91 | 5 44 42 Core Hits 43 | 2 23 18 Critical Kills . | . . . Critical Parts Destroyed 1 | . . 1 Critical Strikes 7 | 1 4 2 Burn 6 | 1 4 1 Destroy 1 | . . 1 Melee Attacks . | . . . Impact . | . . . Slashing . | . . . Piercing . | . . . Sneak Attacks . | . . . Combat Hostiles . | . . . Follow-up Attacks . | . . . Damage Inflicted 1191 | 51 611 529 Guns 1159 | 51 600 508 Cannons . | . . . Explosions 18 | . . 18 Melee . | . . . Ramming 14 | . 11 3 Kinetic 645 | 13 397 235 Thermal 514 | 38 203 273 Explosive 18 | . . 18 Electromagnetic . | . . . Impact . | . . . Slashing . | . . . Piercing . | . . . Highest Corruption 2 | . . 2 Average Corruption 1 | . . 1 Corruption Purged . | . . . Corruption Blocked . | . . . Overload Shots . | . . . Overflow Damage 4 | . . 4 Projectiles . | . . . Explosions 4 | . . 4 Melee . | . . . Knockbacks . | . . . Impact . | . . . Kinetic . | . . . Secondary . | . . . Self-Inflicted Damage 100 | . . 100 Shots 3 | . . 3 Rammed 9 | . 4 5 Targets Rammed 10 | . 5 5 Kicked . | . . . Crushed 1 | . 1 . Highest Temperature 527 | 60 332 527 Average Temperature 135 | 30 97 187 Received Heat Transfer 444 | . 96 348 Effects 10 | . 2 8 Shutdowns 2 | . . 2 Interference 3 | . 2 1 Matter Decay 1 | . . 1 Short Circuit 2 | . . 2 Damage (minor) 1 | . . 1 Damage (core) 1 | . . 1 Siege Activations . | . . . Robots Corrupted . | . . . Combat Hostiles . | . . . Parts Fried . | . . . Impact Corruptions . | . . . Robots Melted . | . . . Combat Hostiles . | . . . Parts Melted 5 | . 2 3 Heat Transferred 1961 | 185 888 888 Parts Sabotaged . | . . . Parts Stolen . | . . . Parts Stripped . | . . . Power Chain Reactions . | . . . Missiles Intercepted . | . . . Alert | -11 -10 -10 ------- Run | Scr Mat Min Peak Influence 115 | 5 112 115 Initial 3 | . 3 2 Average 27 | 1 32 16 Maximum Alert Level . | . . . Low Security (%) 100 | 100 100 100 Level 1 . | . . . Level 2 . | . . . Level 3 . | . . . Level 4 . | . . . Level 5 . | . . . High Security . | . . . Max Security . | . . . Squads Dispatched 1 | . 1 . Investigation 1 | . 1 . Extermination . | . . . Reinforcement . | . . . Assault . | . . . Garrison . | . . . Intercept . | . . . Searches Triggered . | . . . Construction Impeded . | . . . Haulers Reinforced . | . . . Active Scanning Responses . | . . . Cargo Convoy Interrupts . | . . . Stealth | -11 -10 -10 --------- Run | Scr Mat Min Distress Signals 1 | . 1 . Communications Jammed . | . . . Distress Signals . | . . . Times Spotted 31 | . 22 9 Peak Tracking Total 5 | . 5 2 Tactical Retreats 1 | . 1 . Traps | -11 -10 -10 ------- Run | Scr Mat Min Traps Triggered 1 | . 1 . Indirectly . | . . . Trap Hack Attempts . | . . . Triggered . | . . . Disarmed . | . . . Reprogrammed . | . . . Reused . | . . . Traps Extracted . | . . . Installed . | . . . Triggered . | . . . Machines | -11 -10 -10 ---------- Run | Scr Mat Min Machines Disabled . | . . . Max in Single Turn . | . . . Machines Sabotaged . | . . . Garrisons Compromised . | . . . Overloaded Fab Kills . | . . . Hacking | -11 -10 -10 --------- Run | Scr Mat Min Machines Accessed 9 | . 9 . Terminals 8 | . 8 . Fabricators . | . . . Repair Stations 1 | . 1 . Recycling Units . | . . . Scanalyzers . | . . . Garrison Access . | . . . Total Hacks 28 | . 28 . Successful 15 | . 15 . Failed 13 | . 13 . Catastrophic . | . . . Database Lockouts . | . . . Manual 23 | . 23 . Terminals 26 | . 26 . Fabricators . | . . . Repair Stations 2 | . 2 . Recycling Units . | . . . Scanalyzers . | . . . Garrison Access . | . . . Terminal Hacks 3 | . 3 . Prototype ID Bank 1 | . 1 . Terminal Index 1 | . 1 . Unreport Threat 1 | . 1 . Fabricator Hacks . | . . . Repair Station Hacks 2 | . 2 . Scan Component 1 | . 1 . Repair 1 | . 1 . Recycling Unit Hacks . | . . . Scanalyzer . | . . . Garrison Access Hacks . | . . . Unauthorized Hacks 10 | . 10 . Terminals 10 | . 10 . Assimilate 1 | . 1 . Botnet 8 | . 8 . Operators 1 | . 1 . Fabricators . | . . . Repair Stations . | . . . Recycling Units . | . . . Scanalyzers . | . . . Garrison Access . | . . . Data Cores Recovered . | . . . Used . | . . . Hacking Detections 9 | . 9 . Full Trace Events . | . . . Feedback Events . | . . . Feedback Blocked . | . . . Robot Schematics Acquired . | . . . Robots Built . | . . . Authchips . | . . . Time . | . . . Total Robot Build Rating . | . . . Part Schematics Acquired . | . . . Parts Built . | . . . Authchips . | . . . Time . | . . . Total Part Build Rating . | . . . Parts Repaired 1 | . 1 . Time 26 | . 26 . Parts Recycled . | . . . Recycled Matter . | . . . Retrieved Matter . | . . . Retrieved Components . | . . . Parts Scanalyzed . | . . . Part Schematics Acquired . | . . . Parts Damaged . | . . . Bothacking | -11 -10 -10 ------------ Run | Scr Mat Min Used RIF Installer . | . . . Robots Hacked . | . . . Non-combat . | . . . Combat . | . . . Robot Hacks Applied . | . . . Relay Couplers Released . | . . . Fabnet Peak Effective % . | . . . Robots Rewired . | . . . Allies Hacked . | . . . Hacks Repelled . | . . . Allies | -11 -10 -10 -------- Run | Scr Mat Min Total Allies 1 | . 1 . Largest Group 1 | . 1 . Highest-Rated Group 10 | . 10 . Highest-Rated Ally 10 | . 10 . Total Orders . | . . . Ally Attacks . | . . . Total Damage . | . . . Kills . | . . . Allies Corrupted . | . . . Allies Melted . | . . . Intel | -11 -10 -10 ------- Run | Scr Mat Min Robot Analysis Total . | . . . Derelict Logs Recovered 2 | . . 2 Drone Launches . | . . . Drone Recoveries . | . . . Exploration | -11 -10 -10 ------------- Run | Scr Mat Min Turns Passed 2599 | 78 1852 669 Spaces Moved 1288 | 35 962 291 Core 3 | 3 . . Treads 1285 | 32 962 291 Legs . | . . . Wheels . | . . . Hover . | . . . Flight . | . . . Fastest Speed 50 | 50 160 160 Average Speed 159 | 153 160 160 Slowest Speed 160 | 160 160 160 Overloaded Moves . | . . . Propulsion Burnouts . | . . . Robots Hopped . | . . . Cave-ins Triggered . | . . . Exploration Rate (%) 49 | 4 98 45 Regions Visited 2 Branch Regions 1 Pre-discovered Areas 1 | . . 1 Known Exits Taken . | . . . Unknown Exits Taken 2 | 1 1 . Scrap Searched 1 | . . 1 Spaces Dug . | . . . Terrain Destroyed 52 | . . 52 Melee . | . . . Projectile . | . . . AOE 52 | . . 52 Terrain Rammed . | . . . Walls Destroyed . | . . . Machines Disabled . | . . . Actions | -11 -10 -10 --------- Run | Scr Mat Min Total 1658 | 49 1202 407 Wait 208 | . 139 69 Move 1286 | 34 961 291 Hop . | . . . Pick Up 22 | 4 17 1 Fast Attach 9 | 7 2 . Attach 4 | . 3 1 Detach 1 | . 1 . Swap 15 | . 12 3 Drop 17 | . 17 . Fire 86 | 4 45 37 Melee . | . . . Ram 5 | . . 5 Kick . | . . . Crush 5 | . 5 . Escape Stasis . | . . . Rewire . | . . . Trap . | . . . Miscellaneous . | . . . Route ------- -11/Scrapyard -10/Materials (discovered 5 exits: [*Mat x3] / [*Min x2]) -10/Mines History --------- Turn | Location | Event 7 | -11/Scrapyard | Discovered new exit (range 16) 79 | -11/Scrapyard | Entered Materials 328 | -10/Materials | Build established: Mutant 453 | -10/Materials | Discovered new exit (range 13) 692 | -10/Materials | Discovered new exit (range 5) 947 | -10/Materials | Discovered new exit (range 6) 1032 | -10/Materials | Discovered new exit (range 15) 1467 | -10/Materials | Discovered new exit (range 5) 1672 | -10/Materials | Repaired Lgt. Treads 1931 | -10/Materials | Entered Mines 2099 | -10/Mines | Learned Materials non-interactive machine intel 2221 | -10/Mines | Found a damaged Exp. Sensor Array with a note attached 2224 | -10/Mines | Found Prototype Device 2243 | -10/Mines | Excavation squad dispatched 2243 | -10/Mines | A large section of the Mines collapsed 2362 | -10/Mines | Found a hidden stash of uninstalled traps 2493 | -10/Mines | Excavation squad dispatched 2543 | -10/Mines | Core integrity fell below 50% 2578 | -10/Mines | Core integrity fell below 20% 2600 | -10/Mines | Destroyed by G-34 Mercenary with Small Laser Last Messages --------------- 02570_ Overheating: Short circuit. 02570_ Acquired 44 matter. 02575_ Power failure, Ion Engine shutdown. 02575_ Overheating: System interference. 02575_ Assault Rifle temporarily disabled. 02575_ G-34 Mercenary suffers critical hit (Burn). 02576_ Overheating: Assault Rifle damaged (-47). 02577_ Overheating: Matter decay (-55). 02577_ Slammed into G-34 Mercenary. 02577_ Destabilizing: System corrupted (+1). 02578_ Overheating: Core damaged (-45). 02580_ Hrd. Light Armor Plating destroyed. 02583_ Slammed into G-34 Mercenary. 02583_ Destabilizing: System corrupted (+1). 02584_ K-01 Serf collects debris. 02588_ Slammed into G-34 Mercenary. 02590_ K-01 Serf collects debris. 02593_ Slammed into G-34 Mercenary. 02593_ K-01 Serf collects debris. 02598_ Slammed into G-34 Mercenary. Map ----- +----------------------------------------------------+ | | | | | | | | | | | | | | | | | | | | | | | ?????????????????????????????????????????????????? | | ?????????????????????????????????????????????????? | | ???????????###???????????????????????????????????? | | ###################??????????????????????????????? | | **! != # #??????????????????????????????? | | #############=# #??????????????????????????????? | | ???????????##[# # #??###?????????????????????????? | | ??????????### # ##### #?????????????????????????? | | ??????????# # # ##" #?????????????????????????? | | ??????????# # ###### #####?????????????????????? | | ?????????## # !*#?????????????????????? | | ?????????# ##### " t !#?????????????????????? | | ?????????#### # # ###[%#?????????????????????? | | ????????????## ## ##?#*g#######???????????????? | | ?????????????#########??#@g*% #????????? | | ?????????????????###????#%k#### ##???????????????? | | ???????????????????????##*=##????????????????????? | | ??????????????????????## ! #????????????????????? | | ?????????????####????## r ### #????????????????? | | ????????????## ###### #????????????????? | | ????????????# ## ## ### #????????????????? | | ????????????# ##?###????????????????????? | | ????????????## ##?????????????????????????? | | ????????????## #####??????????????????????????? | | ???????????## ##??????????????????????????????? | | ???????????# ##???????????????????????????????? | | ???????????# #????????????????????????????????? | | ???????????# #????????????????????????????????? | | ???????????# ##????????????????????????????????? | | ???????????## #?????????????????????????????????? | | ????????????# #?????????????????????????????????? | | ????????????# #?????????????????????????????????? | | ????????????# #?????????????????????????????????? | | ????????????# #?????????????????????????????????? | | ??########### #?????????????????????????????????? | | ??# #?????????????????????????????????? | | ??# #?????????????????????????????????? | | ??# ###########?????????????????????????????????? | | ??# #???????????????????????????????????????????? | +----------------------------------------------------+ Best States ------------- Heat Dissipation 25 Energy Generation 10 Energy Capacity 250 Matter Stores 300 Matter Capacity 300 Sight Range 16 Terrain Scan Density 10 Armor Coverage 150 Evasion (%) 40 Recoil Reduction 2 Item Schematics ----------------- None Robot Schematics ------------------ None Fabricated ------------ Nothing Alien Tech Used ----------------- None Achievements -------------- None Challenges ------------ None Game ------ Seed SeismicHardcellShielding Manual? 0 Play Time 00:17:16 Cumulative 55.2 hours Start 2022.04.01 @ 21:07:02 End 2022.04.01 @ 21:37:39 Sessions 1 Manual Loads 0 Difficulty Rogue Special Mode None Game No. 92 Rogue 64 Adventurer 28 Explorer 0 Win Type - Total 0 Types 0/0/0/0/0/0/0/0/0 Lore% 23 Gallery% 28 Achievement% 30 Wizard Run 0 Options --------- ASCII 0 Keyboard 0 Movement Mouse Keybinds 0 Fullscreen 1 Font 24/Terminus Map View 84x54 Tactical HUD 1 Map Filters NONE Filters NONE Steam 1 RUN: 013a8fe1-4bb3-4928-9bf9-c861f944c932